bitfinex/quotes_ETHUSD_20260209
["timestamp","ask_amount","ask_price","bid_price","bid_amount"]
[1770640672224,3.96441771,2034.9,2034.2,1.22895109]
[1770640672453,5.19103968,2034.8,2034.0,1.23010521]
[1770640672653,1.22862197,2034.8,2034.0,1.23010521]
[1770640672962,3.96241771,2034.7,2034.0,1.23010521]
[1770640673531,3.96241771,2034.7,2034.2,0.001]
[1770640673820,3.96441771,2034.7,2034.2,0.001]
[1770640674654,5.19116046,2034.6,2034.2,0.001]
[1770640675236,3.96241771,2034.6,2034.2,0.001]
[1770640680154,0.002,2034.7,2034.2,0.001]
[1770640683133,0.002,2034.7,2034.2,3.85137286]
[1770640684360,0.002,2034.7,2034.3,1.22892395]
[1770640684661,0.002,2034.7,2034.3,5.00577461]
[1770640685666,0.002,2034.7,2034.4,0.001]
[1770640686870,0.002,2035.1,2034.5,3.85037286]
[1770640687543,0.002,2035.1,2034.4,0.001]
[1770640687544,3.96241771,2035.0,2034.4,0.001]
[1770640688980,3.96241771,2034.9,2034.4,0.001]
[1770640689272,5.19286678,2035.1,2034.4,0.001]
[1770640691340,3.96441771,2035.1,2034.4,1.22986354]
[1770640692139,3.96441771,2035.1,2034.4,5.0067142]
[1770640692344,5.19285874,2035.1,2034.4,5.0067142]
[1770640692844,0.002,2035.1,2034.4,5.0067142]
[1770640696744,4.10758127,2035.1,2034.4,1.22986354]
[1770640697773,0.002,2035.1,2034.5,3.82302514]
[1770640698070,0.002,2035.1,2034.6,0.001]
[1770640698252,0.002,2034.9,2034.6,0.001]
[1770640698967,0.002,2034.9,2034.6,0.0745222]
[1770640699847,0.002,2034.9,2034.6,0.001]
[1770640700274,0.002,2034.9,2034.6,1.22973945]
[1770640701570,0.002,2034.9,2034.6,5.19383938]
[1770640703155,0.002,2034.9,2034.6,5.12031718]
[1770640703479,0.002,2034.9,2034.6,1.22973945]
[1770640706085,0.002,2034.9,2034.6,0.001]
[1770640707565,5.00817308,2035.5,2034.7,3.89057773]
[1770640707765,3.77792822,2035.4,2034.7,3.89057773]
[1770640709985,5.00619421,2035.4,2034.8,1.22962197]
[1770640710180,5.00618808,2035.4,2034.8,1.22962197]
[1770640710868,0.002,2034.9,2034.8,5.1201997]
[1770640711075,5.00817421,2035.5,2034.8,5.1201997]
[1770640711277,0.002,2035.5,2034.9,3.96409993]
[1770640711651,3.77992822,2035.5,2034.9,3.96409993]
[1770640712387,3.77992822,2035.5,2035.0,1.22850122]
[1770640713177,3.77992822,2035.5,2034.8,0.001]
[1770640713178,12.47827359,2035.4,2034.8,0.001]
[1770640713491,3.77792822,2035.1,2034.7,1.22865881]
[1770640713657,3.77792822,2035.1,2034.6,0.001]
[1770640713861,3.77792822,2035.1,2034.6,1.2297042]
[1770640714456,3.77792822,2035.1,2034.6,0.001]
[1770640715692,3.77792822,2035.1,2034.5,0.001]
[1770640715693,3.77792822,2035.0,2034.5,0.001]
[1770640716380,3.77792822,2034.9,2034.5,0.001]
[1770640716571,5.00640054,2035.1,2034.5,0.001]
[1770640717579,4.66141625,2035.2,2034.5,0.001]
[1770640717766,3.433,2035.2,2034.6,0.0735222]
[1770640718902,3.433,2035.2,2034.7,1.22868236]
[1770640720894,4.66139432,2035.2,2034.6,1.22869405]
[1770640721204,8.43932254,2035.2,2034.5,4.91610807]
[1770640721800,3.77792822,2035.1,2034.5,4.91610807]
[1770640722900,3.77792822,2035.1,2034.7,0.001]
[1770640723198,0.002,2035.0,2034.7,0.001]
[1770640723979,3.435,2035.2,2034.7,0.001]
[1770640725406,4.66339339,2035.2,2034.7,0.001]
[1770640725708,3.91744686,2035.1,2034.7,0.001]
[1770640727387,3.91744686,2034.9,2034.5,0.001]
[1770640728876,5.14592081,2035.1,2034.5,0.001]
[1770640729277,4.66342415,2035.2,2034.5,3.99806235]
[1770640729805,3.435,2035.2,2034.6,1.22874275]
[1770640730186,4.66339172,2035.2,2034.6,1.22874275]
[1770640730687,3.435,2035.2,2034.6,1.22874275]
[1770640731970,0.002,2035.2,2034.6,1.22874275]
[1770640732173,3.91944686,2035.2,2034.5,0.001]
[1770640732374,3.91944686,2035.2,2034.5,1.22976981]
[1770640732779,3.91944686,2035.2,2034.5,0.001]
[1770640733305,3.91944686,2035.2,2034.5,1.22980208]
[1770640734192,3.91744686,2035.0,2034.5,0.001]
[1770640735690,1.23042454,2035.2,2034.8,0.001]
[1770640736005,0.002,2035.0,2034.8,0.001]
[1770640738081,3.91944686,2035.0,2034.8,0.001]
[1770640745718,5.14795814,2035.0,2034.8,0.001]
[1770640745897,0.002,2035.0,2034.8,0.001]
[1770640752919,0.002,2035.0,2034.8,1.22962197]
[1770640753233,0.002,2035.0,2034.8,0.001]
[1770640754725,0.002,2035.0,2034.9,1.2285616]
[1770640755209,0.002,2035.0,2034.9,5.31144989]
[1770640755613,0.002,2035.2,2034.9,5.31144989]
[1770640756528,0.002,2035.2,2035.0,4.08288829]
[1770640758235,0.002,2035.2,2035.1,1.22844086]
[1770640759823,0.002,2035.5,2035.1,1.22844086]
[1770640761532,0.002,2035.2,2035.1,1.22844086]
[1770640761725,0.002,2035.5,2035.1,1.22844086]
[1770640762239,13.36344717,2035.9,2035.1,1.22844086]
[1770640762240,0.002,2036.4,2035.6,0.0735222]
[1770640762536,12.49551788,2036.3,2035.3,4.417918]
[1770640762832,12.49551788,2036.3,2035.3,4.025026]
[1770640763044,3.79308917,2036.3,2035.4,0.0735222]
[1770640763804,0.002,2036.4,2035.8,3.90788482]
[1770640764011,0.002,2036.4,2036.0,3.90788482]
[1770640764236,0.002,2036.4,2035.9,1.22795815]
[1770640764536,3.79508917,2036.4,2035.8,1.22800953]
[1770640766205,3.79508917,2036.4,2035.7,4.91230177]
[1770640769236,3.79508917,2036.4,2035.7,8.82018659]
[1770640769732,5.02274893,2036.4,2035.7,8.82018659]
[1770640769935,3.79308917,2036.3,2035.7,8.82018659]
[1770640770718,3.79308917,2036.3,2032.0,38.5985646]
[1770640770719,3.79308917,2036.3,2035.0,3.90788482]
[1770640770937,3.79308917,2036.0,2034.8,3.90888482]
[1770640771236,3.79308917,2036.0,2034.9,3.98240702]
[1770640773957,3.79308917,2035.8,2035.3,0.001]
[1770640776324,1.22807879,2035.7,2035.3,0.001]
[1770640776531,5.02116796,2035.7,2035.3,0.001]
[1770640777660,5.02116796,2035.7,2035.5,1.1]
[1770640777859,5.02108893,2035.9,2035.3,0.001]
[1770640778970,6.34,2036.1,2035.3,3.90888482]
[1770640779172,7.56786782,2036.1,2035.3,3.98240702]
[1770640780238,11.36095699,2036.1,2035.3,3.98240702]
[1770640780437,3.79308917,2036.0,2035.3,3.90888482]
[1770640781063,1.22795815,2035.9,2035.3,5.13717208]
[1770640781466,3.79308917,2035.8,2035.3,1.22931461]
[1770640781660,3.79308917,2035.8,2035.3,0.001]
[1770640782167,3.79308917,2035.8,2035.3,1.2293186]
[1770640782567,1.22792993,2036.0,2035.4,3.90788482]
[1770640782767,1.22792993,2036.0,2035.5,1.1]
[1770640783144,7.5678732,2036.1,2035.5,2.32816568]
[1770640783575,0.002,2036.2,2035.6,3.90788482]
[1770640786181,0.002,2036.2,2035.7,1.22807879]
[1770640786771,0.002,2036.0,2035.7,5.31180449]
[1770640789667,0.002,2036.0,2035.8,4.0837257]
[1770640791168,0.002,2036.0,2035.8,5.31174405]
[1770640792194,0.002,2036.0,2035.8,4.0837257]
[1770640792382,0.002,2036.0,2035.7,1.22803117]
[1770640794399,0.002,2036.0,2035.7,5.31175687]
[1770640795081,0.002,2036.0,2035.7,4.0837257]
[1770640795273,0.002,2036.0,2035.6,5.31183299]
[1770640799089,0.002,2036.0,2035.6,5.31186037]
[1770640799474,0.002,2036.0,2035.6,1.22813467]
[1770640799880,0.002,2036.0,2035.8,0.001]
[1770640800205,0.002,2035.9,2035.5,1.101]
[1770640800500,4.0977094,2035.9,2035.5,1.101]
[1770640800904,0.002,2035.9,2035.5,1.101]
[1770640801401,0.002,2035.9,2035.6,4.0837257]
[1770640802278,0.002,2035.9,2035.7,5.31180449]
[1770640802473,0.002,2035.9,2035.8,4.0837257]
[1770640802904,0.002,2036.0,2035.8,4.0837257]
[1770640802905,0.002,2036.1,2035.8,4.0837257]
[1770640804383,0.002,2036.1,2035.9,1.22795815]
[1770640804998,0.002,2036.1,2035.8,4.0837257]
[1770640805208,0.002,2036.1,2035.8,1.22801786]
[1770640806378,0.002,2036.1,2035.7,4.0837257]
[1770640808371,0.002,2036.1,2035.8,1.22801846]
[1770640808800,0.002,2036.1,2035.5,6.01366426]
[1770640808994,0.002,2036.1,2035.7,5.31180254]
[1770640809580,0.002,2036.1,2035.8,4.0837257]
[1770640809896,0.002,2036.1,2035.7,1.22807684]
[1770640810105,0.002,2036.1,2035.7,5.31180254]
[1770640810301,0.002,2036.1,2035.8,4.0837257]
[1770640810506,0.002,2036.1,2035.7,1.22807684]
[1770640811313,0.002,2036.1,2035.6,1.22809873]
[1770640812493,0.002,2036.1,2035.9,0.001]
[1770640817685,0.002,2036.4,2036.0,4.26927289]
[1770640817889,1.22968771,2036.4,2035.9,0.001]
[1770640818213,3.97410679,2036.4,2035.9,0.001]
[1770640818417,4.2374189,2036.3,2035.9,0.001]
[1770640819887,0.002,2036.4,2035.9,3.97428145]
[1770640821790,0.002,2036.4,2036.0,5.20117928]
[1770640824610,0.002,2036.4,2036.2,0.001]
[1770640830426,0.002,2037.0,2036.3,3.97328145]
[1770640830640,4.2374189,2037.5,2036.6,4.04680365]
[1770640830825,5.46441282,2037.5,2036.6,3.97328145]
[1770640831122,5.46441282,2037.5,2036.7,3.97328145]
[1770640831325,5.46441282,2037.5,2036.5,3.97328145]
[1770640831326,4.2374189,2037.4,2036.5,3.97328145]
[1770640832042,1.22699392,2037.5,2036.5,3.97328145]
[1770640832331,5.46438138,2037.6,2036.7,3.97328145]
[1770640833448,4.2374189,2038.3,2036.9,3.97328145]
[1770640833609,4.2374189,2038.3,2037.0,3.97328145]
[1770640834326,4.2374189,2038.3,2037.0,4.04680365]
[1770640834633,4.2374189,2038.1,2037.2,3.97328145]
[1770640835330,5.46399136,2038.2,2037.2,3.97328145]
[1770640836004,1.22657246,2038.2,2037.2,3.97328145]
[1770640836514,4.2374189,2038.2,2037.3,5.20039576]
[1770640837024,4.2374189,2038.2,2037.3,1.22711431]
[1770640837227,4.2374189,2038.2,2037.4,3.97328145]
[1770640838139,0.002,2037.6,2037.4,3.97328145]
[1770640839134,0.002,2037.6,2037.4,5.20031624]
[1770640839852,0.002,2037.6,2037.5,3.97328145]
[1770640840147,0.002,2038.5,2037.7,3.97328145]
[1770640841034,0.002,2038.5,2037.8,5.20009467]
[1770640841201,4.2394189,2038.5,2037.7,1.22686522]
[1770640842439,4.2394189,2038.5,2037.7,5.20014667]
[1770640843207,1.22645211,2038.4,2037.8,3.97328145]
[1770640843736,1.22645211,2038.4,2037.5,12.31109677]
[1770640844033,4.2374189,2038.3,2037.5,1.22695754]
[1770640844223,4.2374189,2038.3,2037.5,1.22698157]
[1770640844613,4.2374189,2038.3,2037.7,1.1]
[1770640845136,1.22657246,2038.2,2037.7,1.1]
[1770640845313,4.14983557,2038.1,2037.7,1.1]
[1770640846118,4.14983557,2038.1,2037.1,5.20049173]
[1770640846754,4.14983557,2038.1,2037.0,1.2272485]
[1770640846917,4.14983557,2038.1,2037.1,1.22722866]
[1770640847248,4.14983557,2037.9,2037.0,4.90909623]
[1770640847613,4.14983557,2037.9,2037.1,4.26105136]
[1770640848028,1.22669283,2038.0,2037.1,4.26105136]
[1770640849239,1.22669283,2038.0,2037.2,1.22717455]
[1770640849621,5.3765284,2038.0,2037.2,1.22717455]
[1770640849944,5.3765284,2038.0,2037.2,1.22817455]
[1770640850441,5.3785284,2038.0,2037.2,1.22817455]
[1770640851328,5.3785284,2038.0,2037.2,5.48922591]
[1770640851540,1.22869283,2038.0,2037.3,4.26105136]
[1770640852046,4.14983557,2037.9,2037.2,0.001]
[1770640853740,1.22681322,2037.8,2037.2,0.001]
[1770640854817,1.22681322,2037.8,2037.2,4.26205136]
[1770640855843,1.22869872,2038.0,2037.4,4.26105136]
[1770640856234,1.22869872,2038.0,2037.3,1.22711431]
[1770640856536,5.37853429,2038.0,2037.3,1.22711431]
[1770640858118,5.37853429,2038.0,2037.2,5.48918115]
[1770640859424,5.37853429,2038.0,2037.4,1.1]
[1770640859646,0.002,2038.0,2037.5,4.26105136]
[1770640859843,1.22869559,2038.0,2037.5,4.26105136]
[1770640860047,0.002,2038.0,2037.5,4.26105136]
[1770640860217,0.002,2038.0,2037.5,5.48801007]
[1770640860415,0.002,2038.0,2037.6,4.26105136]
[1770640862324,0.002,2038.0,2037.8,4.26105136]
[1770640862644,0.002,2038.2,2037.8,4.26105136]
[1770640863016,8.3344168,2038.6,2037.9,4.26105136]
[1770640863017,4.65534138,2038.6,2037.9,4.26105136]
[1770640863251,1.22634138,2038.6,2037.9,4.26105136]
[1770640864316,4.90462673,2038.9,2038.0,1.22669283]
[1770640864516,4.90462673,2038.9,2037.9,4.26105136]
[1770640864517,4.14983557,2038.8,2037.9,5.4877569]
[1770640864735,0.002,2038.0,2037.9,1.22675303]
[1770640864948,4.14983557,2038.7,2037.9,1.22675303]
[1770640867126,1.22633179,2038.6,2037.7,4.26105136]
[1770640869141,1.22633179,2038.6,2037.8,5.48786458]
[1770640869754,1.22633179,2038.6,2037.9,4.26105136]
[1770640872458,1.22633179,2038.6,2037.9,5.48778009]
[1770640873254,5.37614893,2038.7,2037.9,5.48778009]
[1770640873670,4.90708657,2038.9,2038.3,4.26105136]
[1770640873671,0.002,2038.9,2038.3,4.26105136]
[1770640874566,0.002,2038.9,2038.5,4.26105136]
[1770640874764,0.002,2038.9,2038.5,4.33457356]
[1770640875140,0.0531021,2039.2,2038.6,4.26105136]
[1770640875344,0.0531021,2039.2,2038.6,4.33457356]
[1770640876164,0.0531021,2039.2,2038.6,4.26105136]
[1770640876369,1.27908096,2039.2,2038.6,4.26105136]
[1770640876749,0.0531021,2039.2,2038.6,5.48734172]
[1770640877266,0.0531021,2039.2,2038.7,4.11167082]
[1770640877843,5.54817888,2039.2,2038.4,1.22643848]
[1770640878146,4.26910063,2039.1,2038.3,1.22650412]
[1770640879174,1.22609122,2039.0,2038.2,4.11167082]
[1770640879341,1.22609122,2039.0,2038.2,5.33824316]
[1770640879541,1.22606389,2039.1,2038.3,4.25171233]
[1770640879756,0.0531021,2039.2,2038.3,4.25171233]
[1770640879956,1.279118,2039.2,2038.3,4.25171233]
[1770640880351,1.279118,2039.2,2038.5,4.32523453]
[1770640880655,1.279118,2039.2,2038.5,4.25171233]
[1770640880840,1.279118,2039.2,2038.3,4.25171233]
[1770640881255,1.279118,2039.2,2038.4,5.47816444]
[1770640882040,1.279118,2039.2,2038.5,4.25171233]
[1770640882940,0.0531021,2039.2,2038.5,4.32523453]
[1770640883142,1.27907972,2039.2,2038.5,4.32523453]
[1770640883357,1.27907972,2039.2,2038.4,4.25171233]
[1770640884578,5.54067187,2039.2,2038.2,5.55176764]
[1770640884867,4.26159215,2039.1,2038.2,4.25171233]
[1770640885077,4.26159215,2039.1,2038.1,0.001]
[1770640885253,5.48768337,2039.0,2038.1,0.001]
[1770640885707,4.26159215,2038.9,2038.1,0.001]
[1770640886647,1.22609122,2039.0,2038.1,4.25271233]
[1770640886849,1.22609122,2039.0,2038.1,4.32623453]
[1770640887351,4.90436488,2039.1,2038.3,4.25171233]
[1770640887352,1.22603109,2039.1,2038.3,4.25171233]
[1770640887756,1.22603109,2039.1,2038.5,4.25171233]
[1770640888677,1.27909551,2039.2,2038.5,4.25171233]
[1770640889375,1.27909551,2039.2,2038.5,5.47810096]
[1770640889804,1.22579063,2039.6,2038.7,4.32523453]
[1770640889986,1.22579063,2039.6,2038.9,4.25171233]
[1770640890502,1.22579063,2039.6,2038.7,4.32523453]
[1770640890786,1.22579063,2039.6,2038.7,4.25171233]
[1770640890995,4.26159215,2039.5,2038.4,4.25171233]
[1770640891297,5.48744289,2039.4,2038.5,1.22638155]
[1770640891491,1.22585074,2039.4,2038.6,4.25171233]
[1770640892292,1.22585074,2039.4,2038.7,4.32523453]
[1770640893301,4.90321752,2039.6,2038.7,5.55148833]
[1770640894498,4.90321752,2039.6,2038.8,4.25171233]
[1770640896087,1.22573053,2039.7,2038.8,5.47790576]
[1770640896484,1.22573053,2039.7,2038.9,4.25171233]
[1770640896675,1.22564238,2039.8,2039.1,4.25171233]
[1770640896995,4.26159215,2040.3,2039.4,4.25171233]
[1770640896996,1.22531,2040.3,2039.4,4.25171233]
[1770640897401,5.48690215,2040.3,2039.4,4.25171233]
[1770640897704,4.26159215,2040.2,2039.1,4.25171233]
[1770640898068,1.05876346,2040.1,2039.3,4.25171233]
[1770640898275,5.32035561,2040.1,2039.0,1.22604925]
[1770640898570,5.32035561,2040.1,2038.7,0.0735222]
[1770640898571,4.26159215,2039.9,2038.7,4.25171233]
[1770640898803,4.26159215,2039.9,2038.4,7.67771233]
[1770640898988,4.26159215,2039.9,2038.4,8.9041622]
[1770640899375,4.26159215,2039.9,2038.4,4.65244987]
[1770640899581,4.26159215,2039.9,2038.5,5.478096]
[1770640899779,4.26159215,2039.9,2038.4,4.65240881]
[1770640900271,4.26159215,2039.9,2038.4,8.90412114]
[1770640900272,4.26159215,2039.7,2038.4,8.90412114]
[1770640900572,4.26159215,2039.7,2038.5,4.25171233]
[1770640902405,5.48732268,2039.6,2038.5,4.25171233]
[1770640902702,4.26159215,2039.6,2038.5,4.25171233]
[1770640902895,5.48732268,2039.6,2038.5,5.47808928]
[1770640903797,5.48732268,2039.6,2038.7,0.001]
[1770640903998,5.48732268,2039.6,2038.7,5.35271233]
[1770640904798,1.22573053,2039.6,2038.8,4.25171233]
[1770640905379,1.22573053,2039.6,2038.8,4.32523453]
[1770640907190,1.22561035,2039.8,2038.9,5.15279779]
[1770640907711,1.22561035,2039.8,2039.0,3.92664644]
[1770640909595,5.17640431,2039.8,2038.8,3.92664644]
[1770640909798,3.95079396,2039.7,2038.7,1.101]
[1770640911617,3.95079396,2039.5,2038.7,1.101]
[1770640914309,1.22585074,2039.4,2038.7,1.101]
[1770640914513,3.95079396,2039.3,2038.7,1.101]
[1770640916623,1.22597096,2039.2,2038.7,1.101]
[1770640917722,1.22597096,2039.2,2038.9,0.001]
[1770640918017,4.90388387,2039.3,2038.9,0.001]
[1770640918018,1.22595286,2039.3,2038.9,0.001]
[1770640919826,4.6518693,2039.4,2038.9,3.92764644]
[1770640920201,3.426,2039.4,2039.1,1.1]
[1770640920396,1.22561035,2039.8,2039.1,1.1]
[1770640920902,1.22561035,2039.8,2039.2,3.92664644]
[1770640923099,8.32820684,2039.9,2039.2,3.92664644]
[1770640923410,1.22561035,2039.8,2039.2,3.92664644]
[1770640926029,1.22561035,2039.8,2039.3,3.92664644]
[1770640927021,1.22561035,2039.8,2039.4,3.92664644]
[1770640927346,4.65159652,2039.9,2039.4,3.92664644]
[1770640927546,4.65155247,2039.9,2039.4,3.92664644]
[1770640928339,1.22555648,2039.9,2039.4,3.92664644]
[1770640928749,1.22555648,2039.9,2039.2,1.29946065]
[1770640928750,5.17635044,2039.9,2039.1,1.1]
[1770640929064,1.22555648,2039.9,2039.1,3.92664644]
[1770640930042,5.17635044,2039.9,2039.1,3.92664644]
[1770640930248,5.17635044,2039.9,2038.9,5.15375005]
[1770640930538,0.002,2039.6,2038.9,1.30062581]
[1770640930763,0.002,2039.6,2039.0,3.92664644]
[1770640930943,0.002,2039.6,2039.2,1.1]
[1770640931820,0.002,2039.6,2039.2,5.02664644]
[1770640932020,0.002,2039.6,2039.2,5.10016864]
[1770640932434,0.002,2039.6,2039.2,5.02664644]
[1770640934855,0.002,2039.6,2039.3,3.92664644]
[1770640936864,0.002,2039.6,2039.2,1.1]
[1770640937952,0.002,2039.6,2038.9,4.26771197]
[1770640938653,3.87388138,2039.5,2038.9,0.001]
[1770640938833,5.09973212,2039.4,2038.9,0.001]
[1770640939039,3.87388138,2039.3,2038.9,0.001]
[1770640941047,1.22597096,2039.2,2038.9,0.001]
[1770640943274,1.22597096,2039.2,2039.1,0.001]
[1770640943859,4.9033692,2039.5,2039.1,0.001]
[1770640945260,1.22579063,2039.5,2039.1,0.001]
[1770640948267,5.09967201,2039.5,2039.1,0.001]
[1770640950269,1.22579063,2039.5,2039.1,0.001]
[1770640951360,5.09967201,2039.5,2039.1,0.001]
[1770640954168,1.22579063,2039.5,2039.1,4.02622066]
[1770640954468,1.22579063,2039.5,2039.3,1.1]
[1770640955172,1.22579063,2039.5,2039.1,0.001]
[1770640956472,5.09967201,2039.5,2039.1,0.001]
[1770640957165,3.87388138,2039.4,2038.9,0.001]
[1770640958861,1.22579063,2039.5,2038.9,0.001]
[1770640959066,1.22579063,2039.5,2038.9,4.09974286]
[1770640960947,3.428,2039.6,2038.9,4.09974286]
[1770640962772,3.87388138,2039.5,2038.9,0.001]
[1770640962962,1.22585074,2039.4,2038.9,0.001]
[1770640963477,1.22585074,2039.4,2038.9,4.02622066]
[1770640965477,4.90340296,2039.5,2038.9,4.02622066]
[1770640968482,8.91169679,2039.5,2038.9,0.001]
[1770640968786,4.00829383,2039.4,2038.7,0.001]
[1770640969162,4.00829383,2039.4,2038.3,0.001]
[1770640969578,4.00829383,2039.1,2038.3,0.001]
[1770640969883,3.426,2039.0,2038.9,0.001]
[1770640970180,3.426,2039.0,2038.3,0.001]
[1770640970666,1.22615135,2038.9,2038.3,0.001]
[1770640973876,1.22615135,2038.9,2038.3,4.01069666]
[1770640974970,1.22615135,2038.9,2038.4,4.08321886]
[1770640975182,4.65215135,2038.9,2038.4,4.08321886]
[1770640975586,3.426,2038.9,2038.4,4.08321886]
[1770640977372,4.65219882,2038.9,2038.4,4.08321886]
[1770640978594,4.65219882,2038.9,2038.4,4.00969666]
[1770640978773,8.66049265,2038.9,2038.3,0.001]
[1770640980496,4.65219882,2038.9,2038.3,4.01069666]
[1770640980693,4.65219882,2038.9,2038.3,0.001]
[1770640980902,1.22619882,2038.9,2038.3,0.001]
[1770640981105,4.65319882,2038.9,2038.3,0.001]
[1770640981271,8.66149265,2038.9,2038.3,0.001]
[1770640982702,8.66149265,2038.9,2038.5,0.001]
[1770640983002,0.002,2038.7,2038.5,0.001]
[1770640983199,0.002,2038.7,2038.3,0.001]
[1770640984203,1.22827164,2038.7,2038.3,0.001]
[1770640984602,13.91091947,2038.7,2038.3,0.001]
[1770640984784,4.00829383,2038.6,2038.3,0.001]
[1770640985803,3.427,2038.5,2038.3,0.001]
[1770640986600,1.22636491,2038.6,2038.3,0.001]
[1770640987504,1.228296,2038.7,2038.3,4.01069666]
[1770640991308,0.002,2038.7,2038.4,4.00969666]
[1770640992108,0.002,2038.7,2038.3,0.001]
[1770640992711,0.002,2038.7,2038.3,4.01069666]
[1770640995711,0.002,2038.7,2038.5,0.001]
[1770641001635,0.002,2038.7,2038.5,4.10209741]
[1770641003039,0.002,2038.7,2038.5,0.001]
[1770641010719,0.002,2038.7,2038.5,4.10209741]
[1770641011742,0.002,2038.7,2038.5,0.0745222]
[1770641012620,0.002,2038.7,2038.5,0.001]
[1770641017245,4.00876723,2038.7,2038.5,0.001]
[1770641017452,4.00676723,2038.7,2038.5,0.001]
[1770641019224,1.22633179,2038.6,2038.5,0.001]
[1770641022153,1.22831155,2038.7,2038.5,0.001]
[1770641023136,0.002,2038.7,2038.5,0.001]
[1770641025231,1.22633179,2038.6,2038.5,0.001]
[1770641027062,1.22633179,2038.6,2038.3,0.001]
[1770641027063,4.04352065,2038.5,2038.3,0.001]
[1770641027356,1.22645211,2038.4,2038.3,0.001]
[1770641028158,1.22643864,2038.5,2038.3,0.001]
[1770641030161,4.04552065,2038.7,2038.3,0.001]
[1770641032379,1.22633179,2038.6,2038.3,0.001]
[1770641032773,1.22633179,2038.6,2038.5,0.001]
[1770641034686,0.002,2038.7,2038.5,0.001]
[1770641034887,4.04552065,2038.7,2038.5,0.001]
[1770641035064,4.04552065,2038.7,2038.3,0.001]
[1770641036695,4.04352065,2038.3,2038.0,0.001]
[1770641036859,1.22657246,2038.2,2038.0,0.001]
[1770641039590,1.22645211,2038.4,2038.0,0.001]
[1770641040401,4.65337263,2038.6,2038.0,4.20267459]
[1770641041106,1.22637263,2038.6,2038.0,4.20267459]
[1770641042380,1.22637263,2038.6,2038.0,5.42936419]
[1770641042581,1.22637263,2038.6,2038.1,4.20167459]
[1770641044876,1.22637263,2038.6,2038.3,1.101]
[1770641045077,0.002,2038.5,2038.3,1.101]
[1770641045291,4.04552065,2038.5,2038.3,1.101]
[1770641045486,4.04552065,2038.5,2038.0,0.001]
[1770641046402,5.26997276,2038.4,2038.0,0.001]
[1770641046603,1.22645211,2038.4,2038.0,0.001]
[1770641048508,4.90778594,2038.5,2038.0,0.001]
[1770641049715,8.95130659,2038.5,2038.0,0.001]
[1770641052612,4.90778594,2038.5,2038.0,0.001]
[1770641053106,0.002,2038.5,2038.0,0.001]
[1770641053682,0.002,2038.5,2038.0,4.20267459]
[1770641055015,4.04552065,2038.5,2038.0,0.001]
[1770641055213,1.22645211,2038.4,2038.0,0.001]
[1770641055712,5.23059208,2038.4,2038.0,0.001]
[1770641056212,1.22645211,2038.4,2038.0,0.001]
[1770641057190,1.22645211,2038.4,2038.2,0.001]
[1770641057399,0.002,2038.3,2038.2,0.001]
[1770641073813,0.002,2038.3,2038.2,4.06179434]
[1770641076614,0.002,2038.3,2038.2,0.001]
[1770641077096,0.002,2038.3,2038.2,4.06179434]
[1770641077527,0.002,2038.3,2038.2,0.001]
[1770641081031,0.002,2038.3,2038.2,4.06179434]
[1770641081209,5.32505421,2039.0,2038.3,4.13431654]
[1770641081407,4.90472027,2038.9,2038.3,4.13431654]
[1770641082229,4.90472027,2038.9,2038.4,0.001]
[1770641083206,9.00362313,2038.9,2038.4,0.001]
[1770641083445,4.09890286,2038.8,2038.2,0.001]
[1770641083637,4.09890286,2038.6,2038.2,0.001]
[1770641084639,5.32529481,2038.5,2038.2,0.001]
[1770641085138,4.09890286,2038.4,2038.2,0.001]
[1770641085309,4.09890286,2038.4,2038.0,0.001]
[1770641086741,5.45832719,2038.3,2038.0,0.001]
[1770641086952,4.23181491,2038.2,2037.6,0.001]
[1770641087111,4.23181491,2037.8,2037.5,0.001]
[1770641088125,4.23181491,2037.6,2037.3,0.001]
[1770641088311,4.23181491,2038.0,2037.3,0.001]
[1770641088714,5.45856794,2037.9,2037.3,0.001]
[1770641088908,4.23181491,2037.7,2037.3,0.001]
[1770641089520,5.45856794,2037.9,2037.3,0.001]
[1770641089833,4.23181491,2037.8,2037.3,0.001]
[1770641091241,4.23181491,2037.6,2037.3,0.001]
[1770641092031,4.23181491,2037.5,2037.2,0.001]
[1770641093248,5.45884734,2037.5,2037.2,0.001]
[1770641093736,4.23181491,2037.5,2037.2,0.001]
[1770641093940,1.22681322,2037.8,2037.2,3.9273631]
[1770641094111,5.45862813,2037.8,2037.2,0.001]
[1770641094318,4.23181491,2037.6,2037.2,0.001]
[1770641094517,4.23181491,2037.6,2037.4,0.001]
[1770641094728,0.002,2037.3,2037.2,0.001]
[1770641096741,1.2269803,2037.6,2037.2,3.9273631]
[1770641097520,4.23181491,2037.7,2037.2,0.001]
[1770641099449,1.22693364,2037.6,2037.2,0.001]
[1770641100744,1.22693364,2037.6,2037.2,3.9273631]
[1770641101240,1.22686034,2037.8,2037.2,3.9273631]
[1770641101620,1.22686034,2037.8,2037.2,5.15452287]
[1770641101816,1.22686034,2037.8,2037.2,5.22804507]
[1770641102048,1.22686034,2037.8,2037.2,5.22805592]
[1770641102420,1.22686034,2037.8,2037.2,4.0008853]
[1770641102822,14.14022863,2037.8,2037.2,0.001]
[1770641103030,12.91336829,2037.6,2037.2,0.001]
[1770641103229,4.23181491,2037.6,2037.2,0.001]
[1770641104423,1.22699386,2037.5,2037.2,0.001]
[1770641105849,4.90779527,2037.6,2037.2,0.001]
[1770641105850,4.90750908,2037.7,2037.2,3.9273631]
[1770641106053,13.58835863,2038.0,2037.2,3.9273631]
[1770641106054,1.22675303,2037.9,2037.2,3.9273631]
[1770641106251,5.45856794,2037.9,2037.2,3.9273631]
[1770641107052,5.45856794,2037.9,2037.4,0.001]
[1770641107554,0.002,2037.6,2037.4,0.001]
[1770641108542,0.002,2037.6,2037.4,3.9273631]
[1770641109057,4.90663816,2038.1,2037.5,3.9263631]
[1770641111358,4.23181491,2038.1,2037.4,0.001]
[1770641111656,12.91336829,2038.0,2037.4,0.001]